fUSD/lending_fUSD_20240319
["ID","MTS","AMOUNT","RATE_DAILY","PERIOD"]
[319594315,1710885070190,-500.0,0.00030684,2]
[319594316,1710885070201,-500.0,0.00030684,2]
[319594317,1710885070211,-2937.74,0.00030684,2]
[319594318,1710885070220,-777.71,0.00030684,2]
[319594319,1710885070229,-1976.68,0.00030684,2]
[319594320,1710885070239,-1133.54,0.00030684,2]
[319594321,1710885070248,-500.0,0.00030684,2]
[319594322,1710885070258,-2119.46,0.00030684,2]
[319594323,1710885070268,-7711.4,0.00030684,2]
[319594324,1710885070277,-524.36,0.00030684,2]
[319594325,1710885070287,-500.0,0.00030684,2]
[319594326,1710885070297,-500.0,0.00030684,2]
[319594327,1710885070307,-14442.37,0.00030684,2]
[319594328,1710885070318,-7310.51,0.00030684,2]
[319594329,1710885070327,-500.0,0.00030684,2]
[319594330,1710885070338,-500.0,0.00030684,2]
[319594331,1710885070347,-500.0,0.00030684,2]
[319594332,1710885070357,-5376.56,0.00030684,2]
[319594333,1710885070367,-4230.03,0.00030684,2]
[319594334,1710885070378,-582.24,0.00030684,2]
[319594335,1710885070388,-751.89,0.00030684,2]
[319594336,1710885070397,-542.91,0.00030684,2]
[319594337,1710885070406,-500.0,0.00030684,2]
[319594338,1710885070417,-500.0,0.00030684,2]
[319594339,1710885070426,-500.0,0.00030684,2]
[319594340,1710885070436,-1949.45,0.00030684,2]
[319594341,1710885070447,-5623.75,0.00030684,2]
[319594342,1710885070458,-636.0,0.00030684,2]
[319594343,1710885070469,-500.0,0.00030684,2]
[319594344,1710885070482,-1033.59,0.00030684,2]
[319594345,1710885070493,-5877.04,0.00030684,2]
[319594346,1710885070503,-825.5,0.00030684,2]
[319594347,1710885070513,-521.04,0.00030684,2]
[319594348,1710885070524,-503.31,0.00030684,2]
[319594349,1710885070534,-3068.4,0.00030684,2]
[319594350,1710885070544,-500.0,0.00030684,2]
[319594351,1710885070555,-2857.27,0.00030684,2]
[319594352,1710885070566,-500.0,0.00030684,2]
[319594353,1710885070576,-502.57429749,0.00030684,2]
[319594354,1710885070586,-631.3,0.00030684,2]
[319594355,1710885070596,-814.62,0.00030684,2]
[319594356,1710885070606,-500.0,0.00030684,2]
[319594357,1710885070616,-2550.99,0.00030684,2]
[319594358,1710885070626,-500.0,0.00030684,2]
[319594359,1710885070635,-500.0,0.00030684,2]
[319594360,1710885070645,-1149.73,0.00030684,2]
[319594361,1710885070655,-7487.75,0.00030684,2]
[319594362,1710885070665,-1638.18,0.00030684,2]
[319594363,1710885070675,-7814.4,0.00030684,2]
[319594364,1710885070685,-705.8,0.00030684,2]
[319594365,1710885070694,-529.96,0.00030684,2]
[319594366,1710885070704,-500.0,0.00030684,2]
[319594367,1710885070713,-594.04,0.00030684,2]
[319594368,1710885070723,-500.0,0.00030684,2]
[319594369,1710885070733,-500.0,0.00030684,2]
[319594370,1710885070743,-500.0,0.00030684,2]
[319594371,1710885070753,-3016.27,0.00030684,2]
[319594372,1710885070763,-500.0,0.00030684,2]
[319594373,1710885070772,-500.0,0.00030684,2]
[319594374,1710885070783,-38480.53,0.00030684,2]
[319594375,1710885070794,-968.19,0.00030684,2]
[319594376,1710885070804,-2988.01,0.00030684,2]
[319594377,1710885070815,-500.0,0.00030684,2]
[319594378,1710885070825,-767.81,0.00030684,2]
[319594379,1710885070835,-3358.0,0.00030684,2]
[319594380,1710885070844,-500.0,0.00030684,2]
[319594381,1710885070854,-2995.65,0.00030684,2]
[319594382,1710885070863,-500.0,0.00030684,2]
[319594383,1710885070874,-500.0,0.00030684,2]
[319594384,1710885070883,-2879.31,0.00030684,2]
[319594385,1710885070892,-577.80448819,0.00030684,2]
[319594386,1710885070902,-3475.26,0.00030684,2]
[319594387,1710885070911,-817.64,0.00030684,2]
[319594388,1710885070921,-626.59,0.00030684,2]
[319594389,1710885070930,-1532.23,0.00030684,2]
[319594390,1710885070940,-500.0,0.00030684,2]
[319594391,1710885070949,-1675.59,0.00030684,2]
[319594392,1710885070959,-1175.56,0.00030684,2]
[319594393,1710885070969,-1109.08,0.00030684,2]
[319594394,1710885070978,-1104.88,0.00030684,2]
[319594395,1710885070988,-1008.18,0.00030684,2]
[319594396,1710885070998,-2383.57,0.00030684,2]
[319594397,1710885071008,-6551.95,0.00030684,2]
[319594398,1710885071018,-20378.39,0.00030684,2]
[319594399,1710885071028,-3428.01,0.00030684,2]
[319594400,1710885071038,-500.0,0.00030684,2]
[319594401,1710885071047,-500.0,0.00030684,2]
[319594402,1710885071057,-500.0,0.00030684,2]
[319594403,1710885071067,-560.24398418,0.00030684,2]
[319594404,1710885071077,-724.41,0.00030684,2]
[319594405,1710885071087,-2691.76,0.00030684,2]
[319594406,1710885071096,-4023.07,0.00030684,2]
[319594407,1710885071106,-500.0,0.00030684,2]
[319594408,1710885071116,-532.04,0.00030684,2]
[319594409,1710885071126,-518.98,0.00030684,2]
[319594410,1710885071136,-3655.41,0.00030684,2]
[319594411,1710885071145,-500.0,0.00030684,2]
[319594412,1710885071155,-151.0,0.00030684,7]
[319594413,1710885071166,-3100.4,0.00030684,2]
[319594414,1710885071177,-152.648474,0.00030684,7]
[319594415,1710885071187,-532.61,0.00030684,2]
[319594416,1710885071197,-500.0,0.00030684,2]
[319594417,1710885071207,-5255.9,0.00030684,2]
[319594418,1710885071217,-1495.58,0.00030684,2]
[319594419,1710885071227,-646.23,0.00030684,2]
[319594420,1710885071238,-500.0,0.00030684,2]
[319594421,1710885071248,-500.0,0.00030684,2]
[319594422,1710885071259,-500.0,0.00030684,2]
[319594423,1710885071269,-856.3,0.00030684,2]
[319594424,1710885071280,-1919.76,0.00030684,2]
[319594425,1710885071291,-2848.19,0.00030684,2]
[319594426,1710885071301,-500.0,0.00030684,2]
[319594427,1710885071313,-514.35,0.00030684,2]
[319594428,1710885071323,-84885.72,0.00030684,2]
[319594429,1710885071333,-917.99,0.00030684,2]
[319594430,1710885071344,-7528.25,0.00030684,2]
[319594431,1710885071354,-2075.6,0.00030684,2]
[319594432,1710885071365,-556.06,0.00030684,2]
[319594433,1710885071376,-500.0,0.00030684,2]
[319594434,1710885071386,-4053.66,0.00030684,2]
[319594435,1710885071397,-950.92,0.00030684,2]
[319594436,1710885071407,-1498.56,0.00030684,2]
[319594437,1710885071418,-500.0,0.00030684,2]
[319594438,1710885071428,-6114.82,0.00030684,2]
[319594439,1710885071438,-1068.02,0.00030684,2]
[319594440,1710885071450,-1140.75,0.00030684,2]
[319594441,1710885071460,-1363.9,0.00030684,2]
[319594442,1710885071471,-500.0,0.00030684,2]
[319594443,1710885071480,-500.0,0.00030684,2]
[319594444,1710885071491,-680.37,0.00030684,2]
[319594445,1710885071502,-500.0,0.00030684,2]
[319594446,1710885071519,-500.0,0.00030684,2]
[319594447,1710885071529,-7331.78,0.00030684,2]
[319594448,1710885071539,-6608.67,0.00030684,2]
[319594449,1710885071550,-535.13,0.00030684,2]
[319594450,1710885071560,-5255.76,0.00030684,2]
[319594451,1710885071571,-1065.89,0.00030684,2]
[319594452,1710885071581,-500.0,0.00030684,2]
[319594453,1710885071591,-2244.41,0.00030684,2]
[319594454,1710885071601,-501.67,0.00030684,2]
[319594455,1710885071611,-12679.11,0.00030684,2]
[319594456,1710885071620,-1134.2,0.00030684,2]
[319594457,1710885071630,-500.0,0.00030684,2]
[319594458,1710885071640,-500.0,0.00030684,2]
[319594459,1710885071649,-500.0,0.00030684,2]
[319594460,1710885071659,-5689.03,0.00030684,2]
[319594461,1710885071669,-500.0,0.00030684,2]
[319594462,1710885071679,-952.29,0.00030684,2]
[319594463,1710885071689,-16057.66,0.00030684,2]
[319594464,1710885071698,-500.0,0.00030684,2]
[319594465,1710885071707,-661.71,0.00030684,2]
[319594466,1710885071717,-9318.38,0.00030684,2]
[319594467,1710885071727,-6799.03,0.00030684,2]
[319594468,1710885071737,-4026.73,0.00030684,2]
[319594469,1710885071747,-3035.5,0.00030684,2]
[319594470,1710885071756,-3750.07,0.00030684,2]
[319594471,1710885071766,-935.16,0.00030684,2]
[319594472,1710885071776,-1750.15,0.00030684,2]
[319594473,1710885071786,-6185.77,0.00030684,2]
[319594474,1710885071799,-507.49,0.00030684,2]
[319594475,1710885071809,-2644.39,0.00030684,2]
[319594476,1710885071820,-500.0,0.00030684,2]
[319594477,1710885071829,-500.0,0.00030684,2]
[319594478,1710885071838,-21984.05,0.00030684,2]
[319594479,1710885071848,-500.0,0.00030684,2]
[319594480,1710885071858,-1656.75,0.00030684,2]
[319594481,1710885071868,-682.19,0.00030684,2]
[319594482,1710885071878,-3232.39,0.00030684,2]
[319594483,1710885071887,-4012.77,0.00030684,2]
[319594484,1710885071896,-500.0,0.00030684,2]
[319594485,1710885071905,-5906.29,0.00030684,2]
[319594486,1710885071915,-2450.74,0.00030684,2]
[319594487,1710885071925,-500.0,0.00030684,2]
[319594488,1710885071934,-590.07952962,0.00030684,2]
[319594489,1710885071943,-500.0,0.00030684,2]
[319594490,1710885071952,-500.0,0.00030684,2]
[319594491,1710885071962,-500.0,0.00030684,2]
[319594492,1710885071971,-500.0,0.00030684,2]
[319594493,1710885071980,-500.0,0.00030684,2]
[319594494,1710885071989,-500.0,0.00030684,2]
[319594495,1710885071999,-500.0,0.00030684,2]
[319594496,1710885072008,-1898.34,0.00030684,2]
[319594497,1710885072018,-6356.12,0.00030684,2]
[319594498,1710885072028,-860.9,0.00030684,2]
[319594499,1710885072037,-500.0,0.00030684,2]
[319594500,1710885072047,-988.62,0.00030684,2]
[319594501,1710885072056,-741.49,0.00030684,2]
[319594502,1710885072067,-500.0,0.00030684,2]
[319594503,1710885072076,-502.93,0.00030684,2]
[319594504,1710885072086,-10393.93,0.00030684,2]
[319594505,1710885072096,-3281.78,0.00030684,2]
[319594506,1710885072106,-887.69,0.00030684,2]
[319594507,1710885072115,-500.0,0.00030684,2]
[319594508,1710885072125,-2054.31,0.00030684,2]
[319594509,1710885072135,-1073.2,0.00030684,2]
[319594510,1710885072144,-500.0,0.00030684,2]
[319594511,1710885072154,-219.537887,0.00030684,7]
[319594512,1710885072164,-500.0,0.00030684,2]
[319594513,1710885072496,-304.79982877,0.00030684,2]
[319594514,1710885072506,-500.0,0.00030684,2]
[319594515,1710885072516,-5676.82,0.00030684,2]
[319594516,1710885072526,-500.0,0.00030684,2]
[319594517,1710885072536,-2336.1,0.00030684,2]
[319594518,1710885072546,-784.81,0.00030684,2]
[319594519,1710885072556,-500.0,0.00030684,2]
[319594520,1710885072568,-958.78,0.00030684,2]
[319594521,1710885072578,-2928.09,0.00030684,2]
[319594522,1710885072587,-12462.52,0.00030684,2]
[319594523,1710885072597,-5305.03,0.00030684,2]
[319594524,1710885072607,-742.85,0.00030684,2]
[319594525,1710885072617,-6273.21,0.00030684,2]
[319594526,1710885072627,-500.0,0.00030684,2]
[319594527,1710885072637,-3248.64,0.00030684,2]
[319594528,1710885072646,-7424.85,0.00030684,2]
[319594529,1710885072655,-500.0,0.00030684,2]
[319594530,1710885072665,-9028.78,0.00030684,2]
[319594531,1710885072675,-8000.71,0.00030684,2]
[319594532,1710885072684,-500.0,0.00030684,2]
[319594533,1710885072694,-7152.27,0.00030684,2]
[319594534,1710885072704,-151.0,0.00030684,7]
[319594535,1710885072714,-152.698064,0.00030684,7]
[319594536,1710885072724,-603.25,0.00030684,2]
[319594537,1710885072733,-500.0,0.00030684,2]
[319594538,1710885072743,-920.58,0.00030684,2]
[319594539,1710885072753,-862.02,0.00030684,2]
[319594540,1710885072763,-11402.88,0.00030684,2]
[319594541,1710885072774,-5180.59,0.00030684,2]
[319594542,1710885072784,-1058.28,0.00030684,2]
[319594543,1710885072793,-500.0,0.00030684,2]
[319594544,1710885072803,-6676.62,0.00030684,2]
[319594545,1710885072814,-50748.97,0.00030684,2]
[319594546,1710885072824,-12563.76,0.00030684,2]
[319594547,1710885072835,-4392.06,0.00030684,2]
[319594548,1710885072845,-500.0,0.00030684,2]
[319594549,1710885072855,-500.0,0.00030684,2]
[319594550,1710885072864,-947.45,0.00030684,2]
[319594551,1710885072874,-994.47,0.00030684,2]
[319594552,1710885072883,-6289.47,0.00030684,2]
[319594553,1710885072893,-1127.56,0.00030684,2]
[319594554,1710885072902,-500.0,0.00030684,2]
[319594555,1710885072912,-500.0,0.00030684,2]
[319594556,1710885072922,-1563.9,0.00030684,2]
[319594557,1710885072931,-1554.32,0.00030684,2]
[319594558,1710885072941,-2538.59,0.00030684,2]
[319594559,1710885072950,-9279.39,0.00030684,2]
[319594560,1710885072960,-2973.35,0.00030684,2]
[319594561,1710885072970,-500.0,0.00030684,2]
[319594562,1710885072980,-1071.73,0.00030684,2]
[319594563,1710885072989,-1557.91,0.00030684,2]
[319594564,1710885072999,-500.0,0.00030684,2]
[319594565,1710885073009,-5460.3,0.00030684,2]
[319594566,1710885073018,-921.84,0.00030684,2]
[319594567,1710885073028,-1497.67,0.00030684,2]
[319594568,1710885073037,-549.68,0.00030684,2]
[319594569,1710885073047,-866.95,0.00030684,2]
[319594570,1710885073057,-500.0,0.00030684,2]
[319594571,1710885073068,-500.0,0.00030684,2]
[319594572,1710885073078,-23885.26,0.00030684,2]
[319594573,1710885073088,-6038.59,0.00030684,2]
[319594574,1710885073098,-34338.3,0.00030684,2]
[319594575,1710885073107,-2241.19,0.00030684,2]
[319594576,1710885073117,-500.0,0.00030684,2]
[319594577,1710885073127,-870.15,0.00030684,2]
[319594578,1710885073136,-1003.35,0.00030684,2]
[319594579,1710885073146,-500.0,0.00030684,2]
[319594580,1710885073155,-5378.59,0.00030684,2]
[319594581,1710885073165,-5507.6,0.00030684,2]
[319594582,1710885073176,-615.59,0.00030684,2]
[319594583,1710885073185,-500.0,0.00030684,2]
[319594584,1710885073196,-681.39,0.00030684,2]
[319594585,1710885073206,-500.0,0.00030684,2]
[319594586,1710885073216,-500.0,0.00030684,2]
[319594587,1710885073226,-3623.08,0.00030684,2]
[319594588,1710885073235,-500.0,0.00030684,2]
[319594589,1710885073245,-659.74,0.00030684,2]
[319594590,1710885073255,-500.0,0.00030684,2]
[319594591,1710885073265,-500.0,0.00030684,2]
[319594592,1710885073275,-1648.34,0.00030684,2]
[319594593,1710885073284,-7204.29,0.00030684,2]
[319594594,1710885073294,-500.0,0.00030684,2]
[319594595,1710885073304,-5688.06,0.00030684,2]
[319594596,1710885073314,-976.18,0.00030684,2]
[319594597,1710885073324,-1912.73,0.00030684,2]
[319594598,1710885073334,-3082.4,0.00030684,2]
[319594599,1710885073344,-2522.27,0.00030684,2]
[319594600,1710885073355,-6424.1,0.00030684,2]
[319594601,1710885073365,-1570.96,0.00030684,2]
[319594602,1710885073375,-1409.47,0.00030684,2]
[319594603,1710885073386,-500.0,0.00030684,2]
[319594604,1710885073396,-500.0,0.00030684,2]
[319594605,1710885073406,-2703.38,0.00030684,2]
[319594606,1710885073416,-151.0,0.00030684,7]
[319594607,1710885073427,-10351.23,0.00030684,2]
[319594608,1710885073437,-500.0,0.00030684,2]
[319594609,1710885073449,-500.0,0.00030684,2]
[319594610,1710885073459,-723.42,0.00030684,2]
[319594611,1710885073470,-500.0,0.00030684,2]
[319594612,1710885073480,-3159.85,0.00030684,2]
[319594613,1710885073491,-19207.21,0.00030684,2]
[319594614,1710885073501,-3910.17,0.00030684,2]
[319594615,1710885073511,-1575.99,0.00030684,2]
[319594616,1710885073520,-989.66,0.00030684,2]
[319594617,1710885073530,-2518.49,0.00030684,2]
[319594618,1710885073540,-500.0,0.00030684,2]
[319594619,1710885073551,-500.0,0.00030684,2]
[319594620,1710885073560,-500.0,0.00030684,2]
[319594621,1710885073572,-602.98,0.00030684,2]
[319594622,1710885073581,-2902.62,0.00030684,2]
[319594623,1710885073591,-1081.46,0.00030684,2]
[319594624,1710885073601,-500.0,0.00030684,2]
[319594625,1710885073610,-996.99,0.00030684,2]
[319594626,1710885073620,-11316.17,0.00030684,2]
[319594627,1710885073629,-722.94,0.00030684,2]
[319594628,1710885073639,-21059.27,0.00030684,2]
[319594629,1710885073648,-1144.28,0.00030684,2]
[319594630,1710885073658,-500.0,0.00030684,2]
[319594631,1710885073668,-592.77,0.00030684,2]
[319594632,1710885073678,-3248.34,0.00030684,2]
[319594633,1710885073689,-611.45,0.00030684,2]
[319594634,1710885073699,-500.0,0.00030684,2]
[319594635,1710885073709,-500.0,0.00030684,2]
[319594636,1710885073719,-1214.02,0.00030684,2]
[319594637,1710885073731,-5044.94,0.00030684,2]
[319594638,1710885073740,-500.0,0.00030684,2]
[319594639,1710885073750,-500.0,0.00030684,2]
[319594640,1710885073766,-6225.21,0.00030684,2]
[319594641,1710885073777,-856.7,0.00030684,2]
[319594642,1710885073791,-608.72,0.00030684,2]
[319594643,1710885073800,-500.0,0.00030684,2]
[319594644,1710885073810,-1511.11,0.00030684,2]
[319594645,1710885073821,-1279.36,0.00030684,2]
[319594646,1710885073831,-500.0,0.00030684,2]
[319594647,1710885073841,-500.0,0.00030684,2]
[319594648,1710885073861,-8737.55,0.00030684,2]
[319594649,1710885073871,-11752.03,0.00030684,2]
[319594650,1710885073882,-4482.5,0.00030684,2]
[319594651,1710885073894,-500.0,0.00030684,2]
[319594652,1710885073904,-1788.46,0.00030684,2]
[319594653,1710885073914,-500.0,0.00030684,2]
[319594654,1710885073924,-5316.22,0.00030684,2]
[319594655,1710885073934,-500.0,0.00030684,2]
[319594656,1710885073944,-1321.67,0.00030684,2]
[319594657,1710885073954,-22991.35,0.00030684,2]
[319594658,1710885073963,-1177.76,0.00030684,2]
[319594659,1710885073973,-518.08,0.00030684,2]
[319594660,1710885073982,-500.0,0.00030684,2]
[319594661,1710885073992,-505.75,0.00030684,2]
[319594662,1710885074002,-500.0,0.00030684,2]
[319594663,1710885074012,-2886.03,0.00030684,2]
[319594664,1710885074022,-1429.54,0.00030684,2]
[319594665,1710885074032,-500.0,0.00030684,2]
[319594666,1710885074042,-3473.42,0.00030684,2]
[319594667,1710885074052,-20562.17,0.00030684,2]
[319594668,1710885074062,-4026.93,0.00030684,2]
[319594669,1710885074072,-500.0,0.00030684,2]
[319594670,1710885074081,-805.12,0.00030684,2]
[319594671,1710885074091,-981.11,0.00030684,2]
[319594672,1710885074101,-500.0,0.00030684,2]
[319594673,1710885074110,-877.4,0.00030684,2]
[319594674,1710885074120,-500.0,0.00030684,2]
[319594675,1710885074130,-1121.88,0.00030684,2]
[319594676,1710885074139,-836.09,0.00030684,2]
[319594677,1710885074150,-500.0,0.00030684,2]
[319594678,1710885074159,-500.0,0.00030684,2]
[319594679,1710885074170,-12965.17,0.00030684,2]
[319594680,1710885074180,-8047.18,0.00030684,2]
[319594681,1710885074190,-4640.74,0.00030684,2]
[319594682,1710885074201,-6661.58,0.00030684,2]
[319594683,1710885074211,-500.0,0.00030684,2]
[319594684,1710885074221,-720.32,0.00030684,2]
[319594685,1710885074231,-536.09999214,0.00030684,2]
[319594686,1710885074240,-500.0,0.00030684,2]
[319594687,1710885074250,-3306.12,0.00030684,2]
[319594688,1710885074262,-1406.25,0.00030684,2]
[319594689,1710885074272,-603.58,0.00030684,2]
[319594690,1710885074282,-500.0,0.00030684,2]
[319594691,1710885074292,-500.0,0.00030684,2]
[319594692,1710885074301,-1438.11,0.00030684,2]
[319594693,1710885074311,-6333.98,0.00030684,2]
[319594694,1710885074322,-500.0,0.00030684,2]
[319594695,1710885074332,-26854.72,0.00030684,2]
[319594696,1710885074342,-2692.37,0.00030684,2]
[319594697,1710885074352,-614.48,0.00030684,2]
[319594698,1710885074363,-1298.71,0.00030684,2]
[319594699,1710885074374,-151.0,0.00030684,7]
[319594700,1710885074385,-2847.31,0.00030684,2]
[319594701,1710885074394,-500.0,0.00030684,2]
[319594702,1710885074405,-1953.31,0.00030684,2]
[319594703,1710885074419,-521.8,0.00030684,2]
[319594704,1710885074429,-972.96,0.00030684,2]
[319594705,1710885074451,-500.0,0.00030684,2]
[319594706,1710885074461,-599.79,0.00030684,2]
[319594707,1710885074472,-1902.54,0.00030684,2]
[319594708,1710885074482,-1686.82,0.00030684,2]
[319594709,1710885074493,-673.97,0.00030684,2]
[319594710,1710885074508,-649.62,0.00030684,2]
[319594711,1710885074518,-26670.31,0.00030684,2]
[319594712,1710885074528,-500.0,0.00030684,2]
[319594713,1710885074538,-5843.77,0.00030684,2]
[319594714,1710885074548,-513.49643,0.00030684,7]
[319594715,1710885074568,-1828.95,0.00030684,2]
[319594716,1710885074584,-1109.32,0.00030684,2]
[319594717,1710885074594,-1199.84,0.00030684,2]
[319594718,1710885074603,-691.9,0.00030684,2]
[319594719,1710885074618,-1216.0,0.00030684,2]
[319594720,1710885074628,-513.49643,0.00030684,7]
[319594721,1710885074638,-500.0,0.00030684,2]
[319594722,1710885074647,-175.52796,0.00030685,14]
[319594723,1710885074659,-800.0,0.00030846,8]
[319594724,1710885074669,-200.0,0.00030846,2]
[319594725,1710885074679,-177.48552002,0.00030857,5]
[319594726,1710885074688,-222.032006,0.00030955,3]
[319594727,1710885074698,-222.032006,0.00030955,4]
[319594728,1710885074708,-465.52150157,0.00030955,2]
[319594729,1710885074718,-222.032006,0.00030956,4]
[319594730,1710885074729,-222.032006,0.00030956,3]
[319594731,1710885074739,-406.10697296,0.00030957,2]
[319594732,1710885074749,-150.0,0.00030957,2]
[319594733,1710885074759,-150.0,0.00030957,2]
[319594734,1710885074768,-905.92,0.00030958,2]
[319594735,1710885074778,-760.8,0.00030958,2]
[319594736,1710885074788,-500.0,0.00030958,2]
[319594737,1710885074798,-500.0,0.00030958,2]
[319594738,1710885074807,-918.16,0.00030958,2]
[319594739,1710885074818,-1354.5,0.00030958,2]
[319594740,1710885074828,-500.0,0.00030958,2]
[319594741,1710885074838,-500.0,0.00030958,2]
[319594742,1710885074848,-150.0,0.00030958,2]
[319594743,1710885074858,-563.69,0.00030958,2]
[319594744,1710885074868,-553.29,0.00030958,2]
[319594745,1710885074878,-500.0,0.00030958,2]
[319594746,1710885074888,-500.0,0.00030958,2]
[319594747,1710885074898,-620.71650049,0.00030958,2]
[319594748,1710885074908,-500.0,0.00030958,2]
[319594749,1710885074918,-500.0,0.00030958,2]
[319594750,1710885074927,-500.0,0.00030958,2]
[319594751,1710885074937,-576.34,0.00030958,2]
[319594752,1710885074947,-500.0,0.00030958,2]
[319594753,1710885074956,-500.0,0.00030958,2]
[319594754,1710885075046,-628.41,0.00030958,2]
[319594755,1710885075056,-500.0,0.00030958,2]
[319594756,1710885075066,-500.0,0.00030958,2]
[319594757,1710885075077,-500.0,0.00030958,2]
[319594758,1710885075086,-964.89,0.00030958,2]
[319594759,1710885075096,-620.13,0.00030958,2]
[319594760,1710885075106,-786.01,0.00030958,2]
[319594761,1710885075115,-564.61,0.00030958,2]
[319594762,1710885075125,-865.28,0.00030958,2]
[319594763,1710885075134,-500.0,0.00030958,2]
[319594764,1710885075143,-500.0,0.00030958,2]
[319594765,1710885075153,-500.0,0.00030958,2]
[319594766,1710885075162,-500.0,0.00030958,2]
[319594767,1710885075173,-500.0,0.00030958,2]
[319594768,1710885075184,-529.43,0.00030958,2]
[319594769,1710885075195,-618.58,0.00030958,2]
[319594770,1710885075205,-500.0,0.00030958,2]
[319594771,1710885075215,-563.52,0.00030958,2]
[319594772,1710885075225,-500.0,0.00030958,2]
[319594773,1710885075236,-2015.12,0.00030958,2]
[319594774,1710885075262,-500.0,0.00030958,2]
[319594775,1710885075281,-500.0,0.00030958,2]
[319594776,1710885075298,-631.9,0.00030958,2]
[319594777,1710885075319,-681.13,0.00030958,2]
[319594778,1710885075338,-1086.99,0.00030958,2]
[319594779,1710885075349,-500.0,0.00030958,2]
[319594780,1710885075374,-500.0,0.00030958,2]
[319594781,1710885075385,-500.0,0.00030958,2]
[319594782,1710885075404,-500.0,0.00030958,2]
[319594783,1710885075425,-500.0,0.00030958,2]
[319594784,1710885075448,-652.31,0.00030958,2]
[319594785,1710885075480,-1320.6,0.00030958,2]
[319594786,1710885075491,-1250.92,0.00030958,2]
[319594787,1710885075501,-1120.04,0.00030958,2]
[319594788,1710885075519,-500.0,0.00030958,2]
[319594789,1710885075529,-500.0,0.00030958,2]
[319594790,1710885075566,-411.71597102,0.00030958,2]
[319594791,1710885075593,-510.25,0.00030958,2]
[319594792,1710885075604,-921.3,0.00030958,2]
[319594793,1710885075614,-1041.72,0.00030958,2]
[319594794,1710885075624,-1043.25,0.00030958,2]
[319594795,1710885075634,-500.0,0.00030958,2]
[319594796,1710885075644,-500.0,0.00030958,2]
[319594797,1710885075654,-535.44,0.00030958,2]
[319594798,1710885075664,-500.0,0.00030958,2]
[319594799,1710885075674,-500.0,0.00030958,2]
[319594800,1710885075683,-500.0,0.00030958,2]
[319594801,1710885075693,-500.0,0.00030958,2]
[319594802,1710885075702,-500.0,0.00030958,2]
[319594803,1710885075711,-957.02,0.00030958,2]
[319594804,1710885075721,-549.6,0.00030958,2]
[319594805,1710885075730,-500.0,0.00030958,2]
[319594806,1710885075740,-500.0,0.00030958,2]
[319594807,1710885075751,-500.0,0.00030958,2]
[319594808,1710885075762,-500.0,0.00030958,2]
[319594809,1710885075772,-546.14,0.00030958,2]
[319594810,1710885075782,-500.0,0.00030958,2]
[319594811,1710885075791,-500.0,0.00030958,2]
[319594812,1710885075801,-983.01,0.00030958,2]
[319594813,1710885075811,-500.0,0.00030958,2]
[319594814,1710885075821,-500.0,0.00030958,2]